{"text_format":"1","workbook":"xlsx","n_sheets":7,"sheets":["python_u","python_k","python_m","Forside","Morbank","Bankkonsern","Utland"],"not_rendered":{"charts":0,"images":1,"macros":1,"external_links":0,"defined_names":0,"comments":0,"pivot_tables":0},"unopened":[],"bounds":{"document_bytes":16777216,"sheet_cells":100000,"rows_first":2000,"rows_last":500,"rows_between":2000,"halvings":0,"cell_chars":16384,"cell_head_chars":4096},"cells_cut":0,"cells_raw":0,"read":"whole","date_system":"1900"}

{"sheet":"python_u","index":0,"n_rows":30,"n_cols":12,"rows_kept":30,"cut":false,"hidden":true,"merged":[]}
["dim_sektor","dim_pant","dim_næring","beskrivelse","ntu_1","ntu_2","ntu_3","ntu_4","ntu_5","ntu_6","ntu_7","ntu_8"]
["PM","øvrige",null,"Personmarkedet (sektor 98000)",{"$f":"Utland!C8-(Utland!C9+Utland!C10)","v":0},{"$f":"Utland!D8-(Utland!D9+Utland!D10)","v":0},{"$f":"Utland!E8-(Utland!E9+Utland!E10)","v":0},{"$f":"Utland!F8-(Utland!F9+Utland!F10)","v":0},{"$f":"Utland!G8-(Utland!G9+Utland!G10)","v":0},{"$f":"Utland!H8-(Utland!H9+Utland!H10)","v":0},{"$f":"Utland!I8-(Utland!I9+Utland!I10)","v":0},{"$f":"Utland!J8-(Utland!J9+Utland!J10)","v":0}]
["PM","Nedbetalingslån med pant i bolig",null,"Herav: Nedbetalingslån med pant i bolig (5)",{"$f":"Utland!C9","v":0},{"$f":"Utland!D9","v":0},{"$f":"Utland!E9","v":0},{"$f":"Utland!F9","v":0},{"$f":"Utland!G9","v":0},{"$f":"Utland!H9","v":0},{"$f":"Utland!I9","v":0},{"$f":"Utland!J9","v":0}]
["PM","Rammelån med pant i bolig",null,"Herav: Rammelån med pant i bolig (6)",{"$f":"Utland!C10","v":0},{"$f":"Utland!D10","v":0},{"$f":"Utland!E10","v":0},{"$f":"Utland!F10","v":0},{"$f":"Utland!G10","v":0},{"$f":"Utland!H10","v":0},{"$f":"Utland!I10","v":0},{"$f":"Utland!J10","v":0}]
["øvrige",null,null,"Næringsmarkedet, utenlandske kunder (sektor 91000+91008+91009)",{"$f":"Utland!C11","v":0},{"$f":"Utland!D11","v":0},{"$f":"Utland!E11","v":0},{"$f":"Utland!F11","v":0},{"$f":"Utland!G11","v":0},{"$f":"Utland!H11","v":0},{"$f":"Utland!I11","v":0},{"$f":"Utland!J11","v":0}]
["BM",null,11,"Jordbruk og tilknyttede tjenester",{"$f":"Utland!C16","v":0},{"$f":"Utland!D16","v":0},{"$f":"Utland!E16","v":0},{"$f":"Utland!F16","v":0},{"$f":"Utland!G16","v":0},{"$f":"Utland!H16","v":0},{"$f":"Utland!I16","v":0},{"$f":"Utland!J16","v":0}]
["BM",null,12,"Skogbruk og tilknyttede tjenester",{"$f":"Utland!C17","v":0},{"$f":"Utland!D17","v":0},{"$f":"Utland!E17","v":0},{"$f":"Utland!F17","v":0},{"$f":"Utland!G17","v":0},{"$f":"Utland!H17","v":0},{"$f":"Utland!I17","v":0},{"$f":"Utland!J17","v":0}]
["BM",null,13,"Fiske og fangst",{"$f":"Utland!C18","v":0},{"$f":"Utland!D18","v":0},{"$f":"Utland!E18","v":0},{"$f":"Utland!F18","v":0},{"$f":"Utland!G18","v":0},{"$f":"Utland!H18","v":0},{"$f":"Utland!I18","v":0},{"$f":"Utland!J18","v":0}]
["BM",null,14,"Fiskeoppdrett og klekkerier",{"$f":"Utland!C19","v":0},{"$f":"Utland!D19","v":0},{"$f":"Utland!E19","v":0},{"$f":"Utland!F19","v":0},{"$f":"Utland!G19","v":0},{"$f":"Utland!H19","v":0},{"$f":"Utland!I19","v":0},{"$f":"Utland!J19","v":0}]
["BM",null,"19a","Bergverksdrift og utvinning",{"$f":"Utland!C20-Utland!C21","v":0},{"$f":"Utland!D20-Utland!D21","v":0},{"$f":"Utland!E20-Utland!E21","v":0},{"$f":"Utland!F20-Utland!F21","v":0},{"$f":"Utland!G20-Utland!G21","v":0},{"$f":"Utland!H20-Utland!H21","v":0},{"$f":"Utland!I20-Utland!I21","v":0},{"$f":"Utland!J20-Utland!J21","v":0}]
["BM",null,"19b","Herav 09.109: Andre tjenester tilknyttet utvinning av råolje og naturgass",{"$f":"Utland!C21","v":0},{"$f":"Utland!D21","v":0},{"$f":"Utland!E21","v":0},{"$f":"Utland!F21","v":0},{"$f":"Utland!G21","v":0},{"$f":"Utland!H21","v":0},{"$f":"Utland!I21","v":0},{"$f":"Utland!J21","v":0}]
["BM",null,22,"Tjenester tilknyttet utvinning av råolje og naturgass",{"$f":"Utland!C22","v":0},{"$f":"Utland!D22","v":0},{"$f":"Utland!E22","v":0},{"$f":"Utland!F22","v":0},{"$f":"Utland!G22","v":0},{"$f":"Utland!H22","v":0},{"$f":"Utland!I22","v":0},{"$f":"Utland!J22","v":0}]
["BM",null,23,"Utvinning av råolje og naturgass",{"$f":"Utland!C23","v":0},{"$f":"Utland!D23","v":0},{"$f":"Utland!E23","v":0},{"$f":"Utland!F23","v":0},{"$f":"Utland!G23","v":0},{"$f":"Utland!H23","v":0},{"$f":"Utland!I23","v":0},{"$f":"Utland!J23","v":0}]
["BM",null,25,"Industri",{"$f":"Utland!C24","v":0},{"$f":"Utland!D24","v":0},{"$f":"Utland!E24","v":0},{"$f":"Utland!F24","v":0},{"$f":"Utland!G24","v":0},{"$f":"Utland!H24","v":0},{"$f":"Utland!I24","v":0},{"$f":"Utland!J24","v":0}]
["BM",null,33,"Bygging av skip og båter",{"$f":"Utland!C25","v":0},{"$f":"Utland!D25","v":0},{"$f":"Utland!E25","v":0},{"$f":"Utland!F25","v":0},{"$f":"Utland!G25","v":0},{"$f":"Utland!H25","v":0},{"$f":"Utland!I25","v":0},{"$f":"Utland!J25","v":0}]
["BM",null,35,"El-,gass-,damp- og varmtvannsforsyning",{"$f":"Utland!C26","v":0},{"$f":"Utland!D26","v":0},{"$f":"Utland!E26","v":0},{"$f":"Utland!F26","v":0},{"$f":"Utland!G26","v":0},{"$f":"Utland!H26","v":0},{"$f":"Utland!I26","v":0},{"$f":"Utland!J26","v":0}]
["BM",null,36,"Vannforsyning, avløps- og renovasjonsvirksomhet",{"$f":"Utland!C27","v":0},{"$f":"Utland!D27","v":0},{"$f":"Utland!E27","v":0},{"$f":"Utland!F27","v":0},{"$f":"Utland!G27","v":0},{"$f":"Utland!H27","v":0},{"$f":"Utland!I27","v":0},{"$f":"Utland!J27","v":0}]
["BM",null,41,"Utvikling av byggeprosjekter",{"$f":"Utland!C28","v":0},{"$f":"Utland!D28","v":0},{"$f":"Utland!E28","v":0},{"$f":"Utland!F28","v":0},{"$f":"Utland!G28","v":0},{"$f":"Utland!H28","v":0},{"$f":"Utland!I28","v":0},{"$f":"Utland!J28","v":0}]
["BM",null,43,"Bygge- og anleggsvirksomhet",{"$f":"Utland!C29","v":0},{"$f":"Utland!D29","v":0},{"$f":"Utland!E29","v":0},{"$f":"Utland!F29","v":0},{"$f":"Utland!G29","v":0},{"$f":"Utland!H29","v":0},{"$f":"Utland!I29","v":0},{"$f":"Utland!J29","v":0}]
["BM",null,45,"Varehandel, reparasjon av motorvogner",{"$f":"Utland!C30","v":0},{"$f":"Utland!D30","v":0},{"$f":"Utland!E30","v":0},{"$f":"Utland!F30","v":0},{"$f":"Utland!G30","v":0},{"$f":"Utland!H30","v":0},{"$f":"Utland!I30","v":0},{"$f":"Utland!J30","v":0}]
["BM",null,49,"Utenrikssjøfart og rørtransport",{"$f":"Utland!C31","v":0},{"$f":"Utland!D31","v":0},{"$f":"Utland!E31","v":0},{"$f":"Utland!F31","v":0},{"$f":"Utland!G31","v":0},{"$f":"Utland!H31","v":0},{"$f":"Utland!I31","v":0},{"$f":"Utland!J31","v":0}]
["BM",null,"53a","Transport ellers og lagring",{"$f":"Utland!C32-Utland!C33","v":0},{"$f":"Utland!D32-Utland!D33","v":0},{"$f":"Utland!E32-Utland!E33","v":0},{"$f":"Utland!F32-Utland!F33","v":0},{"$f":"Utland!G32-Utland!G33","v":0},{"$f":"Utland!H32-Utland!H33","v":0},{"$f":"Utland!I32-Utland!I33","v":0},{"$f":"Utland!J32-Utland!J33","v":0}]
["BM",null,"53b","Herav 50.204: Forsyning og andre sjøtransporttjenester for offshore",{"$f":"Utland!C33","v":0},{"$f":"Utland!D33","v":0},{"$f":"Utland!E33","v":0},{"$f":"Utland!F33","v":0},{"$f":"Utland!G33","v":0},{"$f":"Utland!H33","v":0},{"$f":"Utland!I33","v":0},{"$f":"Utland!J33","v":0}]
["BM",null,55,"Overnattings- og serveringsvirksomhet",{"$f":"Utland!C34","v":0},{"$f":"Utland!D34","v":0},{"$f":"Utland!E34","v":0},{"$f":"Utland!F34","v":0},{"$f":"Utland!G34","v":0},{"$f":"Utland!H34","v":0},{"$f":"Utland!I34","v":0},{"$f":"Utland!J34","v":0}]
["BM",null,63,"Informasjon og kommunikasjon",{"$f":"Utland!C35","v":0},{"$f":"Utland!D35","v":0},{"$f":"Utland!E35","v":0},{"$f":"Utland!F35","v":0},{"$f":"Utland!G35","v":0},{"$f":"Utland!H35","v":0},{"$f":"Utland!I35","v":0},{"$f":"Utland!J35","v":0}]
["BM",null,68,"Omsetning og drift av fast eiendom",{"$f":"Utland!C36","v":0},{"$f":"Utland!D36","v":0},{"$f":"Utland!E36","v":0},{"$f":"Utland!F36","v":0},{"$f":"Utland!G36","v":0},{"$f":"Utland!H36","v":0},{"$f":"Utland!I36","v":0},{"$f":"Utland!J36","v":0}]
["BM",null,73,"Faglig og finansiell tjenesteyting",{"$f":"Utland!C37","v":0},{"$f":"Utland!D37","v":0},{"$f":"Utland!E37","v":0},{"$f":"Utland!F37","v":0},{"$f":"Utland!G37","v":0},{"$f":"Utland!H37","v":0},{"$f":"Utland!I37","v":0},{"$f":"Utland!J37","v":0}]
["BM",null,83,"Forretningsmessig tjenesteyting",{"$f":"Utland!C38","v":0},{"$f":"Utland!D38","v":0},{"$f":"Utland!E38","v":0},{"$f":"Utland!F38","v":0},{"$f":"Utland!G38","v":0},{"$f":"Utland!H38","v":0},{"$f":"Utland!I38","v":0},{"$f":"Utland!J38","v":0}]
["BM",null,93,"Tjenesteytende næringer ellers",{"$f":"Utland!C39","v":0},{"$f":"Utland!D39","v":0},{"$f":"Utland!E39","v":0},{"$f":"Utland!F39","v":0},{"$f":"Utland!G39","v":0},{"$f":"Utland!H39","v":0},{"$f":"Utland!I39","v":0},{"$f":"Utland!J39","v":0}]
["BM",null,null,"Utlån til utenlandske næringskunder som banken ikke er i stand til å næringsfordele",{"$f":"Utland!C40","v":0},{"$f":"Utland!D40","v":0},{"$f":"Utland!E40","v":0},{"$f":"Utland!F40","v":0},{"$f":"Utland!G40","v":0},{"$f":"Utland!H40","v":0},{"$f":"Utland!I40","v":0},{"$f":"Utland!J40","v":0}]

{"sheet":"python_k","index":1,"n_rows":29,"n_cols":12,"rows_kept":29,"cut":false,"hidden":true,"merged":[]}
["dim_sektor","dim_pant","dim_næring","beskrivelse","ntu_1","ntu_2","ntu_3","ntu_4","ntu_5","ntu_6","ntu_7","ntu_8"]
["PM","øvrige",null,"Personmarkedet (sektor 85000)",{"$f":"Bankkonsern!C8-(Bankkonsern!C9+Bankkonsern!C10)","v":0},{"$f":"Bankkonsern!D8-(Bankkonsern!D9+Bankkonsern!D10)","v":0},{"$f":"Bankkonsern!E8-(Bankkonsern!E9+Bankkonsern!E10)","v":0},{"$f":"Bankkonsern!F8-(Bankkonsern!F9+Bankkonsern!F10)","v":0},{"$f":"Bankkonsern!G8-(Bankkonsern!G9+Bankkonsern!G10)","v":0},{"$f":"Bankkonsern!H8-(Bankkonsern!H9+Bankkonsern!H10)","v":0},{"$f":"Bankkonsern!I8-(Bankkonsern!I9+Bankkonsern!I10)","v":0},{"$f":"Bankkonsern!J8-(Bankkonsern!J9+Bankkonsern!J10)","v":0}]
["PM","Nedbetalingslån med pant i bolig",null,"Herav: Nedbetalingslån med pant i bolig (5)",{"$f":"Bankkonsern!C9","v":0},{"$f":"Bankkonsern!D9","v":0},{"$f":"Bankkonsern!E9","v":0},{"$f":"Bankkonsern!F9","v":0},{"$f":"Bankkonsern!G9","v":0},{"$f":"Bankkonsern!H9","v":0},{"$f":"Bankkonsern!I9","v":0},{"$f":"Bankkonsern!J9","v":0}]
["PM","Rammelån med pant i bolig",null,"Herav: Rammelån med pant i bolig (6)",{"$f":"Bankkonsern!C10","v":0},{"$f":"Bankkonsern!D10","v":0},{"$f":"Bankkonsern!E10","v":0},{"$f":"Bankkonsern!F10","v":0},{"$f":"Bankkonsern!G10","v":0},{"$f":"Bankkonsern!H10","v":0},{"$f":"Bankkonsern!I10","v":0},{"$f":"Bankkonsern!J10","v":0}]
["øvrige",null,null,"Andre (7)",{"$f":"Bankkonsern!C11","v":0},{"$f":"Bankkonsern!D11","v":0},{"$f":"Bankkonsern!E11","v":0},{"$f":"Bankkonsern!F11","v":0},{"$f":"Bankkonsern!G11","v":0},{"$f":"Bankkonsern!H11","v":0},{"$f":"Bankkonsern!I11","v":0},{"$f":"Bankkonsern!J11","v":0}]
["BM",null,11,"Jordbruk og tilknyttede tjenester",{"$f":"Bankkonsern!C16","v":0},{"$f":"Bankkonsern!D16","v":0},{"$f":"Bankkonsern!E16","v":0},{"$f":"Bankkonsern!F16","v":0},{"$f":"Bankkonsern!G16","v":0},{"$f":"Bankkonsern!H16","v":0},{"$f":"Bankkonsern!I16","v":0},{"$f":"Bankkonsern!J16","v":0}]
["BM",null,12,"Skogbruk og tilknyttede tjenester",{"$f":"Bankkonsern!C17","v":0},{"$f":"Bankkonsern!D17","v":0},{"$f":"Bankkonsern!E17","v":0},{"$f":"Bankkonsern!F17","v":0},{"$f":"Bankkonsern!G17","v":0},{"$f":"Bankkonsern!H17","v":0},{"$f":"Bankkonsern!I17","v":0},{"$f":"Bankkonsern!J17","v":0}]
["BM",null,13,"Fiske og fangst",{"$f":"Bankkonsern!C18","v":0},{"$f":"Bankkonsern!D18","v":0},{"$f":"Bankkonsern!E18","v":0},{"$f":"Bankkonsern!F18","v":0},{"$f":"Bankkonsern!G18","v":0},{"$f":"Bankkonsern!H18","v":0},{"$f":"Bankkonsern!I18","v":0},{"$f":"Bankkonsern!J18","v":0}]
["BM",null,14,"Fiskeoppdrett og klekkerier",{"$f":"Bankkonsern!C19","v":0},{"$f":"Bankkonsern!D19","v":0},{"$f":"Bankkonsern!E19","v":0},{"$f":"Bankkonsern!F19","v":0},{"$f":"Bankkonsern!G19","v":0},{"$f":"Bankkonsern!H19","v":0},{"$f":"Bankkonsern!I19","v":0},{"$f":"Bankkonsern!J19","v":0}]
["BM",null,"19a","Bergverksdrift og utvinning utennom andre tjenester tilknyttet utvinning av råolje og naturgass",{"$f":"Bankkonsern!C20-Bankkonsern!C21","v":0},{"$f":"Bankkonsern!D20-Bankkonsern!D21","v":0},{"$f":"Bankkonsern!E20-Bankkonsern!E21","v":0},{"$f":"Bankkonsern!F20-Bankkonsern!F21","v":0},{"$f":"Bankkonsern!G20-Bankkonsern!G21","v":0},{"$f":"Bankkonsern!H20-Bankkonsern!H21","v":0},{"$f":"Bankkonsern!I20-Bankkonsern!I21","v":0},{"$f":"Bankkonsern!J20-Bankkonsern!J21","v":0}]
["BM",null,"19b","Herav 09.109: Andre tjenester tilknyttet utvinning av råolje og naturgass",{"$f":"Bankkonsern!C21","v":0},{"$f":"Bankkonsern!D21","v":0},{"$f":"Bankkonsern!E21","v":0},{"$f":"Bankkonsern!F21","v":0},{"$f":"Bankkonsern!G21","v":0},{"$f":"Bankkonsern!H21","v":0},{"$f":"Bankkonsern!I21","v":0},{"$f":"Bankkonsern!J21","v":0}]
["BM",null,22,"Tjenester tilknyttet utvinning av råolje og naturgass",{"$f":"Bankkonsern!C22","v":0},{"$f":"Bankkonsern!D22","v":0},{"$f":"Bankkonsern!E22","v":0},{"$f":"Bankkonsern!F22","v":0},{"$f":"Bankkonsern!G22","v":0},{"$f":"Bankkonsern!H22","v":0},{"$f":"Bankkonsern!I22","v":0},{"$f":"Bankkonsern!J22","v":0}]
["BM",null,23,"Utvinning av råolje og naturgass",{"$f":"Bankkonsern!C23","v":0},{"$f":"Bankkonsern!D23","v":0},{"$f":"Bankkonsern!E23","v":0},{"$f":"Bankkonsern!F23","v":0},{"$f":"Bankkonsern!G23","v":0},{"$f":"Bankkonsern!H23","v":0},{"$f":"Bankkonsern!I23","v":0},{"$f":"Bankkonsern!J23","v":0}]
["BM",null,25,"Industri",{"$f":"Bankkonsern!C24","v":0},{"$f":"Bankkonsern!D24","v":0},{"$f":"Bankkonsern!E24","v":0},{"$f":"Bankkonsern!F24","v":0},{"$f":"Bankkonsern!G24","v":0},{"$f":"Bankkonsern!H24","v":0},{"$f":"Bankkonsern!I24","v":0},{"$f":"Bankkonsern!J24","v":0}]
["BM",null,33,"Bygging av skip og båter",{"$f":"Bankkonsern!C25","v":0},{"$f":"Bankkonsern!D25","v":0},{"$f":"Bankkonsern!E25","v":0},{"$f":"Bankkonsern!F25","v":0},{"$f":"Bankkonsern!G25","v":0},{"$f":"Bankkonsern!H25","v":0},{"$f":"Bankkonsern!I25","v":0},{"$f":"Bankkonsern!J25","v":0}]
["BM",null,35,"El-,gass-,damp- og varmtvannsforsyning",{"$f":"Bankkonsern!C26","v":0},{"$f":"Bankkonsern!D26","v":0},{"$f":"Bankkonsern!E26","v":0},{"$f":"Bankkonsern!F26","v":0},{"$f":"Bankkonsern!G26","v":0},{"$f":"Bankkonsern!H26","v":0},{"$f":"Bankkonsern!I26","v":0},{"$f":"Bankkonsern!J26","v":0}]
["BM",null,36,"Vannforsyning, avløps- og renovasjonsvirksomhet",{"$f":"Bankkonsern!C27","v":0},{"$f":"Bankkonsern!D27","v":0},{"$f":"Bankkonsern!E27","v":0},{"$f":"Bankkonsern!F27","v":0},{"$f":"Bankkonsern!G27","v":0},{"$f":"Bankkonsern!H27","v":0},{"$f":"Bankkonsern!I27","v":0},{"$f":"Bankkonsern!J27","v":0}]
["BM",null,41,"Utvikling av byggeprosjekter",{"$f":"Bankkonsern!C28","v":0},{"$f":"Bankkonsern!D28","v":0},{"$f":"Bankkonsern!E28","v":0},{"$f":"Bankkonsern!F28","v":0},{"$f":"Bankkonsern!G28","v":0},{"$f":"Bankkonsern!H28","v":0},{"$f":"Bankkonsern!I28","v":0},{"$f":"Bankkonsern!J28","v":0}]
["BM",null,43,"Bygge- og anleggsvirksomhet",{"$f":"Bankkonsern!C29","v":0},{"$f":"Bankkonsern!D29","v":0},{"$f":"Bankkonsern!E29","v":0},{"$f":"Bankkonsern!F29","v":0},{"$f":"Bankkonsern!G29","v":0},{"$f":"Bankkonsern!H29","v":0},{"$f":"Bankkonsern!I29","v":0},{"$f":"Bankkonsern!J29","v":0}]
["BM",null,45,"Varehandel, reparasjon av motorvogner",{"$f":"Bankkonsern!C30","v":0},{"$f":"Bankkonsern!D30","v":0},{"$f":"Bankkonsern!E30","v":0},{"$f":"Bankkonsern!F30","v":0},{"$f":"Bankkonsern!G30","v":0},{"$f":"Bankkonsern!H30","v":0},{"$f":"Bankkonsern!I30","v":0},{"$f":"Bankkonsern!J30","v":0}]
["BM",null,49,"Utenrikssjøfart og rørtransport",{"$f":"Bankkonsern!C31","v":0},{"$f":"Bankkonsern!D31","v":0},{"$f":"Bankkonsern!E31","v":0},{"$f":"Bankkonsern!F31","v":0},{"$f":"Bankkonsern!G31","v":0},{"$f":"Bankkonsern!H31","v":0},{"$f":"Bankkonsern!I31","v":0},{"$f":"Bankkonsern!J31","v":0}]
["BM",null,"53a","Transport ellers og lagring utennom forsyning og andre sjøtransporttjenester for offshore",{"$f":"Bankkonsern!C32-Bankkonsern!C33","v":0},{"$f":"Bankkonsern!D32-Bankkonsern!D33","v":0},{"$f":"Bankkonsern!E32-Bankkonsern!E33","v":0},{"$f":"Bankkonsern!F32-Bankkonsern!F33","v":0},{"$f":"Bankkonsern!G32-Bankkonsern!G33","v":0},{"$f":"Bankkonsern!H32-Bankkonsern!H33","v":0},{"$f":"Bankkonsern!I32-Bankkonsern!I33","v":0},{"$f":"Bankkonsern!J32-Bankkonsern!J33","v":0}]
["BM",null,"53b","Herav 50.204: Forsyning og andre sjøtransporttjenester for offshore",{"$f":"Bankkonsern!C33","v":0},{"$f":"Bankkonsern!D33","v":0},{"$f":"Bankkonsern!E33","v":0},{"$f":"Bankkonsern!F33","v":0},{"$f":"Bankkonsern!G33","v":0},{"$f":"Bankkonsern!H33","v":0},{"$f":"Bankkonsern!I33","v":0},{"$f":"Bankkonsern!J33","v":0}]
["BM",null,55,"Overnattings- og serveringsvirksomhet",{"$f":"Bankkonsern!C34","v":0},{"$f":"Bankkonsern!D34","v":0},{"$f":"Bankkonsern!E34","v":0},{"$f":"Bankkonsern!F34","v":0},{"$f":"Bankkonsern!G34","v":0},{"$f":"Bankkonsern!H34","v":0},{"$f":"Bankkonsern!I34","v":0},{"$f":"Bankkonsern!J34","v":0}]
["BM",null,63,"Informasjon og kommunikasjon",{"$f":"Bankkonsern!C35","v":0},{"$f":"Bankkonsern!D35","v":0},{"$f":"Bankkonsern!E35","v":0},{"$f":"Bankkonsern!F35","v":0},{"$f":"Bankkonsern!G35","v":0},{"$f":"Bankkonsern!H35","v":0},{"$f":"Bankkonsern!I35","v":0},{"$f":"Bankkonsern!J35","v":0}]
["BM",null,68,"Omsetning og drift av fast eiendom",{"$f":"Bankkonsern!C36","v":0},{"$f":"Bankkonsern!D36","v":0},{"$f":"Bankkonsern!E36","v":0},{"$f":"Bankkonsern!F36","v":0},{"$f":"Bankkonsern!G36","v":0},{"$f":"Bankkonsern!H36","v":0},{"$f":"Bankkonsern!I36","v":0},{"$f":"Bankkonsern!J36","v":0}]
["BM",null,73,"Faglig og finansiell tjenesteyting",{"$f":"Bankkonsern!C37","v":0},{"$f":"Bankkonsern!D37","v":0},{"$f":"Bankkonsern!E37","v":0},{"$f":"Bankkonsern!F37","v":0},{"$f":"Bankkonsern!G37","v":0},{"$f":"Bankkonsern!H37","v":0},{"$f":"Bankkonsern!I37","v":0},{"$f":"Bankkonsern!J37","v":0}]
["BM",null,83,"Forretningsmessig tjenesteyting",{"$f":"Bankkonsern!C38","v":0},{"$f":"Bankkonsern!D38","v":0},{"$f":"Bankkonsern!E38","v":0},{"$f":"Bankkonsern!F38","v":0},{"$f":"Bankkonsern!G38","v":0},{"$f":"Bankkonsern!H38","v":0},{"$f":"Bankkonsern!I38","v":0},{"$f":"Bankkonsern!J38","v":0}]
["BM",null,93,"Tjenesteytende næringer ellers",{"$f":"Bankkonsern!C39","v":0},{"$f":"Bankkonsern!D39","v":0},{"$f":"Bankkonsern!E39","v":0},{"$f":"Bankkonsern!F39","v":0},{"$f":"Bankkonsern!G39","v":0},{"$f":"Bankkonsern!H39","v":0},{"$f":"Bankkonsern!I39","v":0},{"$f":"Bankkonsern!J39","v":0}]

{"sheet":"python_m","index":2,"n_rows":29,"n_cols":12,"rows_kept":29,"cut":false,"hidden":true,"merged":[]}
["dim_sektor","dim_pant","dim_næring","beskrivelse","ntu_1","ntu_2","ntu_3","ntu_4","ntu_5","ntu_6","ntu_7","ntu_8"]
["PM","øvrige",null,"Personmarkedet (sektor 85000)",{"$f":"Morbank!C8-(Morbank!C9+Morbank!C10)","v":0},{"$f":"Morbank!D8-(Morbank!D9+Morbank!D10)","v":0},{"$f":"Morbank!E8-(Morbank!E9+Morbank!E10)","v":0},{"$f":"Morbank!F8-(Morbank!F9+Morbank!F10)","v":0},{"$f":"Morbank!G8-(Morbank!G9+Morbank!G10)","v":0},{"$f":"Morbank!H8-(Morbank!H9+Morbank!H10)","v":0},{"$f":"Morbank!I8-(Morbank!I9+Morbank!I10)","v":0},{"$f":"Morbank!J8-(Morbank!J9+Morbank!J10)","v":0}]
["PM","Nedbetalingslån med pant i bolig",null,"Herav: Nedbetalingslån med pant i bolig (5)",{"$f":"Morbank!C9","v":0},{"$f":"Morbank!D9","v":0},{"$f":"Morbank!E9","v":0},{"$f":"Morbank!F9","v":0},{"$f":"Morbank!G9","v":0},{"$f":"Morbank!H9","v":0},{"$f":"Morbank!I9","v":0},{"$f":"Morbank!J9","v":0}]
["PM","Rammelån med pant i bolig",null,"Herav: Rammelån med pant i bolig (6)",{"$f":"Morbank!C10","v":0},{"$f":"Morbank!D10","v":0},{"$f":"Morbank!E10","v":0},{"$f":"Morbank!F10","v":0},{"$f":"Morbank!G10","v":0},{"$f":"Morbank!H10","v":0},{"$f":"Morbank!I10","v":0},{"$f":"Morbank!J10","v":0}]
["øvrige",null,null,"Andre (7)",{"$f":"Morbank!C11","v":0},{"$f":"Morbank!D11","v":0},{"$f":"Morbank!E11","v":0},{"$f":"Morbank!F11","v":0},{"$f":"Morbank!G11","v":0},{"$f":"Morbank!H11","v":0},{"$f":"Morbank!I11","v":0},{"$f":"Morbank!J11","v":0}]
["BM",null,11,"Jordbruk og tilknyttede tjenester",{"$f":"Morbank!C16","v":0},{"$f":"Morbank!D16","v":0},{"$f":"Morbank!E16","v":0},{"$f":"Morbank!F16","v":0},{"$f":"Morbank!G16","v":0},{"$f":"Morbank!H16","v":0},{"$f":"Morbank!I16","v":0},{"$f":"Morbank!J16","v":0}]
["BM",null,12,"Skogbruk og tilknyttede tjenester",{"$f":"Morbank!C17","v":0},{"$f":"Morbank!D17","v":0},{"$f":"Morbank!E17","v":0},{"$f":"Morbank!F17","v":0},{"$f":"Morbank!G17","v":0},{"$f":"Morbank!H17","v":0},{"$f":"Morbank!I17","v":0},{"$f":"Morbank!J17","v":0}]
["BM",null,13,"Fiske og fangst",{"$f":"Morbank!C18","v":0},{"$f":"Morbank!D18","v":0},{"$f":"Morbank!E18","v":0},{"$f":"Morbank!F18","v":0},{"$f":"Morbank!G18","v":0},{"$f":"Morbank!H18","v":0},{"$f":"Morbank!I18","v":0},{"$f":"Morbank!J18","v":0}]
["BM",null,14,"Fiskeoppdrett og klekkerier",{"$f":"Morbank!C19","v":0},{"$f":"Morbank!D19","v":0},{"$f":"Morbank!E19","v":0},{"$f":"Morbank!F19","v":0},{"$f":"Morbank!G19","v":0},{"$f":"Morbank!H19","v":0},{"$f":"Morbank!I19","v":0},{"$f":"Morbank!J19","v":0}]
["BM",null,"19a","Bergverksdrift og utvinning utennom andre tjenester tilknyttet utvinning av råolje og naturgass",{"$f":"Morbank!C20-Morbank!C21","v":0},{"$f":"Morbank!D20-Morbank!D21","v":0},{"$f":"Morbank!E20-Morbank!E21","v":0},{"$f":"Morbank!F20-Morbank!F21","v":0},{"$f":"Morbank!G20-Morbank!G21","v":0},{"$f":"Morbank!H20-Morbank!H21","v":0},{"$f":"Morbank!I20-Morbank!I21","v":0},{"$f":"Morbank!J20-Morbank!J21","v":0}]
["BM",null,"19b","Herav 09.109: Andre tjenester tilknyttet utvinning av råolje og naturgass",{"$f":"Morbank!C21","v":0},{"$f":"Morbank!D21","v":0},{"$f":"Morbank!E21","v":0},{"$f":"Morbank!F21","v":0},{"$f":"Morbank!G21","v":0},{"$f":"Morbank!H21","v":0},{"$f":"Morbank!I21","v":0},{"$f":"Morbank!J21","v":0}]
["BM",null,22,"Tjenester tilknyttet utvinning av råolje og naturgass",{"$f":"Morbank!C22","v":0},{"$f":"Morbank!D22","v":0},{"$f":"Morbank!E22","v":0},{"$f":"Morbank!F22","v":0},{"$f":"Morbank!G22","v":0},{"$f":"Morbank!H22","v":0},{"$f":"Morbank!I22","v":0},{"$f":"Morbank!J22","v":0}]
["BM",null,23,"Utvinning av råolje og naturgass",{"$f":"Morbank!C23","v":0},{"$f":"Morbank!D23","v":0},{"$f":"Morbank!E23","v":0},{"$f":"Morbank!F23","v":0},{"$f":"Morbank!G23","v":0},{"$f":"Morbank!H23","v":0},{"$f":"Morbank!I23","v":0},{"$f":"Morbank!J23","v":0}]
["BM",null,25,"Industri",{"$f":"Morbank!C24","v":0},{"$f":"Morbank!D24","v":0},{"$f":"Morbank!E24","v":0},{"$f":"Morbank!F24","v":0},{"$f":"Morbank!G24","v":0},{"$f":"Morbank!H24","v":0},{"$f":"Morbank!I24","v":0},{"$f":"Morbank!J24","v":0}]
["BM",null,33,"Bygging av skip og båter",{"$f":"Morbank!C25","v":0},{"$f":"Morbank!D25","v":0},{"$f":"Morbank!E25","v":0},{"$f":"Morbank!F25","v":0},{"$f":"Morbank!G25","v":0},{"$f":"Morbank!H25","v":0},{"$f":"Morbank!I25","v":0},{"$f":"Morbank!J25","v":0}]
["BM",null,35,"El-,gass-,damp- og varmtvannsforsyning",{"$f":"Morbank!C26","v":0},{"$f":"Morbank!D26","v":0},{"$f":"Morbank!E26","v":0},{"$f":"Morbank!F26","v":0},{"$f":"Morbank!G26","v":0},{"$f":"Morbank!H26","v":0},{"$f":"Morbank!I26","v":0},{"$f":"Morbank!J26","v":0}]
["BM",null,36,"Vannforsyning, avløps- og renovasjonsvirksomhet",{"$f":"Morbank!C27","v":0},{"$f":"Morbank!D27","v":0},{"$f":"Morbank!E27","v":0},{"$f":"Morbank!F27","v":0},{"$f":"Morbank!G27","v":0},{"$f":"Morbank!H27","v":0},{"$f":"Morbank!I27","v":0},{"$f":"Morbank!J27","v":0}]
["BM",null,41,"Utvikling av byggeprosjekter",{"$f":"Morbank!C28","v":0},{"$f":"Morbank!D28","v":0},{"$f":"Morbank!E28","v":0},{"$f":"Morbank!F28","v":0},{"$f":"Morbank!G28","v":0},{"$f":"Morbank!H28","v":0},{"$f":"Morbank!I28","v":0},{"$f":"Morbank!J28","v":0}]
["BM",null,43,"Bygge- og anleggsvirksomhet",{"$f":"Morbank!C29","v":0},{"$f":"Morbank!D29","v":0},{"$f":"Morbank!E29","v":0},{"$f":"Morbank!F29","v":0},{"$f":"Morbank!G29","v":0},{"$f":"Morbank!H29","v":0},{"$f":"Morbank!I29","v":0},{"$f":"Morbank!J29","v":0}]
["BM",null,45,"Varehandel, reparasjon av motorvogner",{"$f":"Morbank!C30","v":0},{"$f":"Morbank!D30","v":0},{"$f":"Morbank!E30","v":0},{"$f":"Morbank!F30","v":0},{"$f":"Morbank!G30","v":0},{"$f":"Morbank!H30","v":0},{"$f":"Morbank!I30","v":0},{"$f":"Morbank!J30","v":0}]
["BM",null,49,"Utenrikssjøfart og rørtransport",{"$f":"Morbank!C31","v":0},{"$f":"Morbank!D31","v":0},{"$f":"Morbank!E31","v":0},{"$f":"Morbank!F31","v":0},{"$f":"Morbank!G31","v":0},{"$f":"Morbank!H31","v":0},{"$f":"Morbank!I31","v":0},{"$f":"Morbank!J31","v":0}]
["BM",null,"53a","Transport ellers og lagring utennom forsyning og andre sjøtransporttjenester for offshore",{"$f":"Morbank!C32-Morbank!C33","v":0},{"$f":"Morbank!D32-Morbank!D33","v":0},{"$f":"Morbank!E32-Morbank!E33","v":0},{"$f":"Morbank!F32-Morbank!F33","v":0},{"$f":"Morbank!G32-Morbank!G33","v":0},{"$f":"Morbank!H32-Morbank!H33","v":0},{"$f":"Morbank!I32-Morbank!I33","v":0},{"$f":"Morbank!J32-Morbank!J33","v":0}]
["BM",null,"53b","Herav 50.204: Forsyning og andre sjøtransporttjenester for offshore",{"$f":"Morbank!C33","v":0},{"$f":"Morbank!D33","v":0},{"$f":"Morbank!E33","v":0},{"$f":"Morbank!F33","v":0},{"$f":"Morbank!G33","v":0},{"$f":"Morbank!H33","v":0},{"$f":"Morbank!I33","v":0},{"$f":"Morbank!J33","v":0}]
["BM",null,55,"Overnattings- og serveringsvirksomhet",{"$f":"Morbank!C34","v":0},{"$f":"Morbank!D34","v":0},{"$f":"Morbank!E34","v":0},{"$f":"Morbank!F34","v":0},{"$f":"Morbank!G34","v":0},{"$f":"Morbank!H34","v":0},{"$f":"Morbank!I34","v":0},{"$f":"Morbank!J34","v":0}]
["BM",null,63,"Informasjon og kommunikasjon",{"$f":"Morbank!C35","v":0},{"$f":"Morbank!D35","v":0},{"$f":"Morbank!E35","v":0},{"$f":"Morbank!F35","v":0},{"$f":"Morbank!G35","v":0},{"$f":"Morbank!H35","v":0},{"$f":"Morbank!I35","v":0},{"$f":"Morbank!J35","v":0}]
["BM",null,68,"Omsetning og drift av fast eiendom",{"$f":"Morbank!C36","v":0},{"$f":"Morbank!D36","v":0},{"$f":"Morbank!E36","v":0},{"$f":"Morbank!F36","v":0},{"$f":"Morbank!G36","v":0},{"$f":"Morbank!H36","v":0},{"$f":"Morbank!I36","v":0},{"$f":"Morbank!J36","v":0}]
["BM",null,73,"Faglig og finansiell tjenesteyting",{"$f":"Morbank!C37","v":0},{"$f":"Morbank!D37","v":0},{"$f":"Morbank!E37","v":0},{"$f":"Morbank!F37","v":0},{"$f":"Morbank!G37","v":0},{"$f":"Morbank!H37","v":0},{"$f":"Morbank!I37","v":0},{"$f":"Morbank!J37","v":0}]
["BM",null,83,"Forretningsmessig tjenesteyting",{"$f":"Morbank!C38","v":0},{"$f":"Morbank!D38","v":0},{"$f":"Morbank!E38","v":0},{"$f":"Morbank!F38","v":0},{"$f":"Morbank!G38","v":0},{"$f":"Morbank!H38","v":0},{"$f":"Morbank!I38","v":0},{"$f":"Morbank!J38","v":0}]
["BM",null,93,"Tjenesteytende næringer ellers",{"$f":"Morbank!C39","v":0},{"$f":"Morbank!D39","v":0},{"$f":"Morbank!E39","v":0},{"$f":"Morbank!F39","v":0},{"$f":"Morbank!G39","v":0},{"$f":"Morbank!H39","v":0},{"$f":"Morbank!I39","v":0},{"$f":"Morbank!J39","v":0}]

{"sheet":"Forside","index":3,"n_rows":13,"n_cols":98,"rows_kept":13,"cut":false,"hidden":false,"merged":[[5,2,5,5],[4,2,4,5],[7,2,7,5],[8,2,8,4],[9,2,9,4]]}
["VERSJONSNUMMER:","KRT-1131",null,null,null,null,null,null,null,null,null,null,null,null,null,null,null,null,null,null,null,{"$f":"YEAR(NOW())-1","v":2021},null,null,null,null,null,null,null,null,null,null,null,null,null,null,null,null,null,null,null,null,null,null,null,null,null,null,null,null,null,null,{"$f":"B1","v":"KRT-1131"},{"$f":"C12","v":20210930},{"$f":"A2","v":311},{"$f":"F10","v":0},{"$f":"E12","v":0},{"$f":"IF(F12=\"1.kvartal\",CONCATENATE(\"3\"),IF(F12=\"1.halvår\",CONCATENATE(\"6\"),IF(F12=\"1.-3.kvartal\",CONCATENATE(\"9\"),IF(F12=\"År\",CONCATENATE(\"12\"),\"\"))))","v":""},10,"Forside",null,null,null,null,null,null,null,null,null,null,null,null,null,null,null,null,null,null,"BA",999999001,"BB",{"$f":"+CB1+1","v":999999002},"BC",{"$f":"+CD1+1","v":999999003},"BD",{"$f":"+CF1+1","v":999999004},"BE",{"$f":"+CH1+1","v":999999005},"BF",{"$f":"+CJ1+1","v":999999006},"BG",{"$f":"+CL1+1","v":999999007},"BH",{"$f":"+CN1+1","v":999999008},"BI",{"$f":"+CP1+1","v":999999009},"BJ",{"$f":"+CR1+1","v":999999010}]
[311,null,null,null,null,null,null,null,null,null,null,null,null,null,null,null,null,null,null,null,null,{"$f":"YEAR(NOW())","v":2022},null,null,null,null,null,null,null,null,null,null,null,null,null,null,null,null,null,null,null,null,null,null,null,null,null,null,null,null,null,null,"Skjema-ID","Gyldig Excel Mal","VersjonsNr","Orgnr","ÅR","MND","Antall datakolonner","Arknavn","Kons./ikke kons.","SA/IRB"]
["b"]
[]
[]
[null,null,"SPESIFIKASJON AV BOKFØRTE TAP PÅ BRUTTO UTLÅN BANKER"]
[]
[]
[null,null,"FORETAKETS NAVN:",null,null,"ORGANISASJONSNUMMER:"]
[]
[null,null,"EXCELMAL GYLDIG FRA:","SISTE DAG I  RAPPORTERINGSPERIODEN:","RAPPORTERINGSÅR:","RAPPORTERINGSPERIODE:"]
[null,null,20210930,{"$f":"IF(AND(E12<>\"\",F12<>\"\"),CONCATENATE(RIGHT(E12,4),\"-\",IF(F12=\"1.kvartal\",CONCATENATE(\"03-31\"),IF(F12=\"1.halvår\",CONCATENATE(\"06-30\"),IF(F12=\"1.-3.kvartal\",CONCATENATE(\"09-30\"),IF(F12=\"År\",CONCATENATE(\"12-31\"),\"\"))))),\"\")","v":""}]
[null,null,"RAPPORTERE UTLAND (SE INFOBOKS):"]

{"sheet":"Morbank","index":4,"n_rows":51,"n_cols":10,"rows_kept":51,"cut":false,"hidden":false,"merged":[[2,9,4,9],[2,2,4,2],[2,5,4,5],[2,4,4,4],[2,3,4,3],[2,6,4,6],[49,0,50,1],[47,0,47,1],[45,0,45,1],[2,7,4,7],[2,8,4,8]]}
["Skjema: Nærmere spesifikasjon av bokførte tap og brutto utlån (For juridisk enhet - solonivå)",null,null,null,null,"NB: Husk å lese fotnotene"]
[]
["i 1000 kroner",null,"Brutto utlån (1)","Bokførte tap i perioden i Trinn 1 (2)","Bokførte tap i perioden i Trinn 2 (2)","Bokførte tap i perioden i Trinn 3 (2)","Misligholdte eng. over 90 dager, brutto (3)","Andre misligholdte eng., brutto (3)","Nedskrivn. (akk.) på misligh. 90-dager (4)","Nedskrivn. (akk.) på andre mis. eng. (4)"]
[]
[]
[null,null,{"$f":"Forside!D12","v":""},{"$f":"Forside!F12 & \" \" & Forside!E12","v":" "},{"$f":"D6","v":" "},{"$f":"D6","v":" "},{"$f":"C6","v":""},{"$f":"C6","v":""},{"$f":"C6","v":""},{"$f":"C6","v":""}]
["1. TOTALE BRUTTO UTLÅN"]
["1.1","Personmarkedet (sektor 85000)"]
[null,"Herav: Nedbetalingslån med pant i bolig (5)"]
[null,"Herav: Rammelån med pant i bolig (6)"]
["1.2","Næringsmarkedet (sektor 11100 tom. 25000+70000+82000+83000)"]
["1.3","Andre (7)"]
[]
["2. BRUTTO UTLÅN OG BOKFØRTE TAP FORDELT PÅ NÆRING (8)"]
["Næringskoder (8)","Beskrivelse"]
["011","Jordbruk og tilknyttede tjenester"]
["012","Skogbruk og tilknyttede tjenester"]
["013","Fiske og fangst"]
["014","Fiskeoppdrett og klekkerier"]
["019","Bergverksdrift og utvinning"]
[null,"Herav 09.109: Andre tjenester tilknyttet utvinning av råolje og naturgass"]
["022","Tjenester tilknyttet utvinning av råolje og naturgass"]
["023","Utvinning av råolje og naturgass"]
["025","Industri"]
["033","Bygging av skip og båter"]
["035","El-,gass-,damp- og varmtvannsforsyning"]
["036","Vannforsyning, avløps- og renovasjonsvirksomhet"]
["041","Utvikling av byggeprosjekter"]
["043","Bygge- og anleggsvirksomhet"]
["045","Varehandel, reparasjon av motorvogner"]
["049","Utenrikssjøfart og rørtransport"]
["053","Transport ellers og lagring"]
[null,"Herav 50.204: Forsyning og andre sjøtransporttjenester for offshore"]
["055","Overnattings- og serveringsvirksomhet"]
["063","Informasjon og kommunikasjon"]
["068","Omsetning og drift av fast eiendom"]
["073","Faglig og finansiell tjenesteyting"]
["083","Forretningsmessig tjenesteyting"]
["093","Tjenesteytende næringer ellers"]
["1) Jf. ORBOF-rapport 10, kode 3.51  2) Summen av trinnfordelte tap skal tilsvare resultatførte tap på utlån, ubenyttet ramme og garantier, jf. ORBOF-rapport 21, kode 6.66.3.50, 6.68.7.86 og 6.68.7.87  3) Jf. ORBOF-rapport 12, kode 17.0.41.0.01/02 for hhv. 90-dagers mis. og andre mis.eng. "]
["4) Nedskrivninger og verdifall som følge av kred.risiko på misligholdte engasjementer, jf ORBOF-rapport 12: kode 17.0.42.0.01 (90-dagers) og kode 17.0.42.0.02 (andre mis.eng.)  5) Jf. ORBOF-rapport 10, kode 3.51.50.11"]
["6) Jf. ORBOF-rapport 10: kode 3.51.19.11  7) Finansinstitusjoner, stat- og trygdeforvaltning, kommunesektoren og utlandet  8) Sektorer med sektorkode 11100 tom. 25000+70000+82000+83000 skal spesifiseres etter næring, Jf. næringsgruppering i ORBOF-rapport 10/50"]
[]
["Forklaring av feilkontroller:"]
[]
["Beløpet i rad 11 skal tilsvare summen av alt som er fordelt på næring i rad 16 til 39, fratrukket heravpostene i rad 21 og 33",null,{"$f":"IF(C11<>(SUM(C16:C39)-C21-C33),\"Feil, se note\",\"\")","v":""},{"$f":"IF(D11<>(SUM(D16:D20)+SUM(D22:D32)+SUM(D34:D39)),\"Feil, se note\",\"\")","v":""},{"$f":"IF(E11<>(SUM(E16:E20)+SUM(E22:E32)+SUM(E34:E39)),\"Feil, se note\",\"\")","v":""},{"$f":"IF(F11<>(SUM(F16:F20)+SUM(F22:F32)+SUM(F34:F39)),\"Feil, se note\",\"\")","v":""},{"$f":"IF(G11<>(SUM(G16:G39)-G21-G33),\"Feil, se note\",\"\")","v":""},{"$f":"IF(H11<>(SUM(H16:H39)-H21-H33),\"Feil, se note\",\"\")","v":""},{"$f":"IF(I11<>(SUM(I16:I39)-I21-I33),\"Feil, se note\",\"\")","v":""},{"$f":"IF(J11<>(SUM(J16:J39)-J21-J33),\"Feil, se note\",\"\")","v":""}]
[]
["Summen av rad 9 til 10, må være mindre eller like rad 8",null,{"$f":"IF(C8<(C9+C10),\"Feil, se note\",\"\")","v":""},null,null,null,{"$f":"IF(G8<(G9+G10),\"Feil, se note\",\"\")","v":""},{"$f":"IF(H8<(H9+H10),\"Feil, se note\",\"\")","v":""},{"$f":"IF(I8<(I9+I10),\"Feil, se note\",\"\")","v":""},{"$f":"IF(J8<(J9+J10),\"Feil, se note\",\"\")","v":""}]
[]
["Herav-postene kan ikke ha større beløp en overordnet post (unntak ved netto tilbakeføring av tap)",null,{"$f":"IF(C20<C21,\"Feil, se note\",\"\")","v":""},null,null,null,{"$f":"IF(G20<G21,\"Feil, se note\",\"\")","v":""},{"$f":"IF(H20<H21,\"Feil, se note\",\"\")","v":""},{"$f":"IF(I20<I21,\"Feil, se note\",\"\")","v":""},{"$f":"IF(J20<J21,\"Feil, se note\",\"\")","v":""}]
[null,null,{"$f":"IF(C32<C33,\"Feil, se note\",\"\")","v":""},null,null,null,{"$f":"IF(G32<G33,\"Feil, se note\",\"\")","v":""},{"$f":"IF(H32<H33,\"Feil, se note\",\"\")","v":""},{"$f":"IF(I32<I33,\"Feil, se note\",\"\")","v":""},{"$f":"IF(J32<J33,\"Feil, se note\",\"\")","v":""}]

{"sheet":"Bankkonsern","index":5,"n_rows":51,"n_cols":10,"rows_kept":51,"cut":false,"hidden":false,"merged":[[49,0,50,1],[2,7,4,7],[2,8,4,8],[2,9,4,9],[45,0,45,1],[47,0,47,1],[2,2,4,2],[2,3,4,3],[2,4,4,4],[2,5,4,5],[2,6,4,6]]}
["Skjema: Nærmere spesifikasjon av bokførte tap og brutto utlån (For juridisk enhet - konsolidert nivå)",null,null,null,null,"NB: Husk å lese fotnotene"]
[]
["i 1000 kroner",null,"Brutto utlån (1)","Bokførte tap i perioden i Trinn 1 (2)","Bokførte tap i perioden i Trinn 2 (2)","Bokførte tap i perioden i Trinn 3 (2)","Misligholdte eng. over 90 dager, brutto (3)","Andre misligholdte eng., brutto (3)","Nedskrivn. (akk.) på misligh. 90-dager (4)","Nedskrivn. (akk.) på andre mis. eng. (4)"]
[]
[]
[null,null,{"$f":"Forside!D12","v":""},{"$f":"Forside!F12 & \" \" & Forside!E12","v":" "},{"$f":"D6","v":" "},{"$f":"D6","v":" "},{"$f":"C6","v":""},{"$f":"C6","v":""},{"$f":"C6","v":""},{"$f":"C6","v":""}]
["1. TOTALE BRUTTO UTLÅN"]
["1.1","Personmarkedet (sektor 85000)"]
[null,"Herav: Nedbetalingslån med pant i bolig (5)"]
[null,"Herav: Rammelån med pant i bolig (6)"]
["1.2","Næringsmarkedet (sektor 11100 tom. 25000+70000+82000+83000)"]
["1.3","Andre (7)"]
[]
["2. BRUTTO UTLÅN OG BOKFØRTE TAP FORDELT PÅ NÆRING (8)"]
["Næringskoder (8)","Beskrivelse"]
["011","Jordbruk og tilknyttede tjenester"]
["012","Skogbruk og tilknyttede tjenester"]
["013","Fiske og fangst"]
["014","Fiskeoppdrett og klekkerier"]
["019","Bergverksdrift og utvinning"]
[null,"Herav 09.109: Andre tjenester tilknyttet utvinning av råolje og naturgass"]
["022","Tjenester tilknyttet utvinning av råolje og naturgass"]
["023","Utvinning av råolje og naturgass"]
["025","Industri"]
["033","Bygging av skip og båter"]
["035","El-,gass-,damp- og varmtvannsforsyning"]
["036","Vannforsyning, avløps- og renovasjonsvirksomhet"]
["041","Utvikling av byggeprosjekter"]
["043","Bygge- og anleggsvirksomhet"]
["045","Varehandel, reparasjon av motorvogner"]
["049","Utenrikssjøfart og rørtransport"]
["053","Transport ellers og lagring"]
[null,"Herav 50.204: Forsyning og andre sjøtransporttjenester for offshore"]
["055","Overnattings- og serveringsvirksomhet"]
["063","Informasjon og kommunikasjon"]
["068","Omsetning og drift av fast eiendom"]
["073","Faglig og finansiell tjenesteyting"]
["083","Forretningsmessig tjenesteyting"]
["093","Tjenesteytende næringer ellers"]
["1) Jf. ORBOF-rapport 10, kode 3.51  2) Summen av trinnfordelte tap skal tilsvare resultatførte tap på utlån, ubenyttet ramme og garantier, jf. ORBOF-rapport 21, kode 6.66.3.50, 6.68.7.86 og 6.68.7.87  3) Jf. ORBOF-rapport 12, kode 17.0.41.0.01/02 for hhv. 90-dagers mis. og andre mis.eng. "]
["4) Nedskrivninger og verdifall som følge av kred.risiko på misligholdte engasjementer, jf ORBOF-rapport 12: kode 17.0.42.0.01 (90-dagers) og kode 17.0.42.0.02 (andre mis.eng.)  5) Jf. ORBOF-rapport 10, kode 3.51.50.11"]
["6) Jf. ORBOF-rapport 10: kode 3.51.19.11  7) Finansinstitusjoner, stat- og trygdeforvaltning, kommunesektoren og utlandet  8) Sektorer med sektorkode 11100 tom. 25000+70000+82000+83000 skal spesifiseres etter næring, Jf. næringsgruppering i ORBOF-rapport 10/50"]
[]
["Forklaring av feilkontroller:"]
[]
["Beløpet i rad 11 skal tilsvare summen av alt som er fordelt på næring i rad 16 til 39, fratrukket heravpostene i rad 21 og 33",null,{"$f":"IF(C11<>(SUM(C16:C39)-C21-C33),\"Feil, se note\",\"\")","v":""},{"$f":"IF(D11<>(SUM(D16:D20)+SUM(D22:D32)+SUM(D34:D39)),\"Feil, se note\",\"\")","v":""},{"$f":"IF(E11<>(SUM(E16:E20)+SUM(E22:E32)+SUM(E34:E39)),\"Feil, se note\",\"\")","v":""},{"$f":"IF(F11<>(SUM(F16:F20)+SUM(F22:F32)+SUM(F34:F39)),\"Feil, se note\",\"\")","v":""},{"$f":"IF(G11<>(SUM(G16:G39)-G21-G33),\"Feil, se note\",\"\")","v":""},{"$f":"IF(H11<>(SUM(H16:H39)-H21-H33),\"Feil, se note\",\"\")","v":""},{"$f":"IF(I11<>(SUM(I16:I39)-I21-I33),\"Feil, se note\",\"\")","v":""},{"$f":"IF(J11<>(SUM(J16:J39)-J21-J33),\"Feil, se note\",\"\")","v":""}]
[]
["Summen av rad 9 til 10, må være mindre eller like rad 8",null,{"$f":"IF(C8<(C9+C10),\"Feil, se note\",\"\")","v":""},null,null,null,{"$f":"IF(G8<(G9+G10),\"Feil, se note\",\"\")","v":""},{"$f":"IF(H8<(H9+H10),\"Feil, se note\",\"\")","v":""},{"$f":"IF(I8<(I9+I10),\"Feil, se note\",\"\")","v":""},{"$f":"IF(J8<(J9+J10),\"Feil, se note\",\"\")","v":""}]
[]
["Herav-postene kan ikke ha større beløp en overordnet post (unntak ved netto tilbakeføring av tap)",null,{"$f":"IF(C20<C21,\"Feil, se note\",\"\")","v":""},null,null,null,{"$f":"IF(G20<G21,\"Feil, se note\",\"\")","v":""},{"$f":"IF(H20<H21,\"Feil, se note\",\"\")","v":""},{"$f":"IF(I20<I21,\"Feil, se note\",\"\")","v":""},{"$f":"IF(J20<J21,\"Feil, se note\",\"\")","v":""}]
[null,null,{"$f":"IF(C32<C33,\"Feil, se note\",\"\")","v":""},null,null,null,{"$f":"IF(G32<G33,\"Feil, se note\",\"\")","v":""},{"$f":"IF(H32<H33,\"Feil, se note\",\"\")","v":""},{"$f":"IF(I32<I33,\"Feil, se note\",\"\")","v":""},{"$f":"IF(J32<J33,\"Feil, se note\",\"\")","v":""}]

{"sheet":"Utland","index":6,"n_rows":52,"n_cols":10,"rows_kept":52,"cut":false,"hidden":true,"merged":[[50,0,51,1],[2,7,4,7],[2,8,4,8],[2,9,4,9],[46,0,46,1],[48,0,48,1],[2,2,4,2],[2,3,4,3],[2,4,4,4],[2,5,4,5],[2,6,4,6]]}
["Skjema: Nærmere spesifikasjon av bokførte tap og brutto utlån (For juridisk enhet - øverste konsolideringsnivå - Kun utenlandske sektorer)",null,null,null,null,null,null,"NB: Husk å lese fotnotene"]
[]
["i 1000 kroner",null,"Brutto utlån (1)","Bokførte tap i perioden i Trinn 1 (2)","Bokførte tap i perioden i Trinn 2 (2)","Bokførte tap i perioden i Trinn 3 (2)","Misligholdte eng. over 90 dager, brutto (3)","Andre misligholdte eng., brutto (3)","Nedskrivn. (akk.) på misligh. 90-dager (4)","Nedskrivn. (akk.) på andre mis. eng. (4)"]
[]
[]
[null,null,{"$f":"Forside!D12","v":""},{"$f":"Forside!F12 & \" \" & Forside!E12","v":" "},{"$f":"D6","v":" "},{"$f":"D6","v":" "},{"$f":"C6","v":""},{"$f":"C6","v":""},{"$f":"C6","v":""},{"$f":"C6","v":""}]
["1. TOTALE BRUTTO UTLÅN"]
["1.1","Personmarkedet (sektor 98000)"]
[null,"Herav: Nedbetalingslån med pant i bolig (5)"]
[null,"Herav: Rammelån med pant i bolig (6)"]
["1.2","Næringsmarkedet, utenlandske kunder (sektor 91000+91008+91009)"]
[]
[]
["2. BRUTTO UTLÅN OG BOKFØRTE TAP FORDELT PÅ NÆRING (7)"]
["Næringskoder (7)","Beskrivelse"]
["011","Jordbruk og tilknyttede tjenester"]
["012","Skogbruk og tilknyttede tjenester"]
["013","Fiske og fangst"]
["014","Fiskeoppdrett og klekkerier"]
["019","Bergverksdrift og utvinning"]
[null,"Herav 09.109: Andre tjenester tilknyttet utvinning av råolje og naturgass"]
["022","Tjenester tilknyttet utvinning av råolje og naturgass"]
["023","Utvinning av råolje og naturgass"]
["025","Industri"]
["033","Bygging av skip og båter"]
["035","El-,gass-,damp- og varmtvannsforsyning"]
["036","Vannforsyning, avløps- og renovasjonsvirksomhet"]
["041","Utvikling av byggeprosjekter"]
["043","Bygge- og anleggsvirksomhet"]
["045","Varehandel, reparasjon av motorvogner"]
["049","Utenrikssjøfart og rørtransport"]
["053","Transport ellers og lagring"]
[null,"Herav 50.204: Forsyning og andre sjøtransporttjenester for offshore"]
["055","Overnattings- og serveringsvirksomhet"]
["063","Informasjon og kommunikasjon"]
["068","Omsetning og drift av fast eiendom"]
["073","Faglig og finansiell tjenesteyting"]
["083","Forretningsmessig tjenesteyting"]
["093","Tjenesteytende næringer ellers"]
[null,"Utlån til utenlandske næringskunder som banken ikke er i stand til å næringsfordele"]
["1) Jf. ORBOF-rapport 10, kode 3.51  2) Summen av trinnfordelte tap skal tilsvare resultatførte tap på utlån, ubenyttet ramme og garantier, jf. ORBOF-rapport 21, kode 6.66.3.50, 6.68.7.86 og 6.68.7.87  3) Jf. ORBOF-rapport 12, kode 17.0.41.0.01/02 for hhv. 90-dagers mis. og andre mis.eng. "]
["4) Nedskrivninger og verdifall som følge av kred.risiko på misligholdte engasjementer, jf ORBOF-rapport 12: kode 17.0.42.0.01 (90-dagers) og kode 17.0.42.0.02 (andre mis.eng.)  5) Jf. ORBOF-rapport 10, kode 3.51.50.11"]
["6) Jf. ORBOF-rapport 10: kode 3.51.19.11  7) Sektorer med sektorkode 91000+91008+91009 skal spesifiseres etter næring"]
[]
["Forklaring av feilkontroller:"]
[]
["Beløpet i rad 11 skal tilsvare summen av alt som er fordelt på næring i rad 16 til 39, fratrukket heravpostene i rad 21 og 33",null,{"$f":"IF(C11<>(SUM(C16:C40)-C21-C33),\"Feil, se note\",\"\")","v":""},{"$f":"IF(D11<>(SUM(D16:D20)+SUM(D22:D32)+SUM(D34:D40)),\"Feil, se note\",\"\")","v":""},{"$f":"IF(E11<>(SUM(E16:E20)+SUM(E22:E32)+SUM(E34:E40)),\"Feil, se note\",\"\")","v":""},{"$f":"IF(F11<>(SUM(F16:F20)+SUM(F22:F32)+SUM(F34:F40)),\"Feil, se note\",\"\")","v":""},{"$f":"IF(G11<>(SUM(G16:G40)-G21-G33),\"Feil, se note\",\"\")","v":""},{"$f":"IF(H11<>(SUM(H16:H40)-H21-H33),\"Feil, se note\",\"\")","v":""},{"$f":"IF(I11<>(SUM(I16:I40)-I21-I33),\"Feil, se note\",\"\")","v":""},{"$f":"IF(J11<>(SUM(J16:J40)-J21-J33),\"Feil, se note\",\"\")","v":""}]
[]
["Summen av rad 9 til 10, må være mindre eller like rad 8",null,{"$f":"IF(C8<(C9+C10),\"Feil, se note\",\"\")","v":""},null,null,null,{"$f":"IF(G8<(G9+G10),\"Feil, se note\",\"\")","v":""},{"$f":"IF(H8<(H9+H10),\"Feil, se note\",\"\")","v":""},{"$f":"IF(I8<(I9+I10),\"Feil, se note\",\"\")","v":""},{"$f":"IF(J8<(J9+J10),\"Feil, se note\",\"\")","v":""}]
[]
["Herav-postene kan ikke ha større beløp en overordnet post (unntak ved netto tilbakeføring av tap)",null,{"$f":"IF(C20<C21,\"Feil, se note\",\"\")","v":""},null,null,null,{"$f":"IF(G20<G21,\"Feil, se note\",\"\")","v":""},{"$f":"IF(H20<H21,\"Feil, se note\",\"\")","v":""},{"$f":"IF(I20<I21,\"Feil, se note\",\"\")","v":""},{"$f":"IF(J20<J21,\"Feil, se note\",\"\")","v":""}]
[null,null,{"$f":"IF(C32<C33,\"Feil, se note\",\"\")","v":""},null,null,null,{"$f":"IF(G32<G33,\"Feil, se note\",\"\")","v":""},{"$f":"IF(H32<H33,\"Feil, se note\",\"\")","v":""},{"$f":"IF(I32<I33,\"Feil, se note\",\"\")","v":""},{"$f":"IF(J32<J33,\"Feil, se note\",\"\")","v":""}]